fUSD/lending_fUSD_20260506
["ID","MTS","AMOUNT","RATE_DAILY","PERIOD"]
[421704981,1778049226000,-2000.0,0.00017681,2]
[421704982,1778049226000,-791.29362206,0.000177,2]
[421704978,1778049226000,-1500.0,0.00017534,2]
[421704971,1778049226000,-501.50869273,0.00017534,2]
[421704979,1778049226000,-1500.0,0.00017534,2]
[421704973,1778049226000,-1500.0,0.00017534,2]
[421704972,1778049226000,-1216.01710541,0.00017534,2]
[421704977,1778049226000,-1500.0,0.00017534,2]
[421704970,1778049226000,-1500.0,0.00017534,2]
[421704976,1778049226000,-1500.0,0.00017534,2]
[421704975,1778049226000,-1500.0,0.00017534,2]
[421705038,1778049227000,-500.0,0.00019178,2]
[421705036,1778049227000,-209.86289845,0.000191,2]
[421705040,1778049227000,-500.0,0.00019178,2]
[421705047,1778049227000,-500.0,0.00019178,2]
[421705042,1778049227000,-500.0,0.00019178,2]
[421705044,1778049227000,-500.0,0.00019178,2]
[421705043,1778049227000,-500.0,0.00019178,2]
[421705041,1778049227000,-500.0,0.00019178,2]
[421705039,1778049227000,-500.0,0.00019178,2]
[421705052,1778049227000,-500.0,0.00019178,2]
[421705046,1778049227000,-500.0,0.00019178,2]
[421705050,1778049227000,-500.0,0.00019178,2]
[421705049,1778049227000,-500.0,0.00019178,2]
[421705048,1778049227000,-500.0,0.00019178,2]
[421705051,1778049227000,-500.0,0.00019178,2]
[421705053,1778049227000,-500.0,0.00019178,2]
[421705056,1778049227000,-3000.0,0.00019178,2]
[421705037,1778049227000,-500.0,0.00019178,2]
[421705055,1778049227000,-11082.87,0.00019178,2]
[421705045,1778049227000,-500.0,0.00019178,2]
[421705035,1778049227000,-169.59,0.00019049,2]
[421705021,1778049227000,-249.69632176,0.00018715,2]
[421705034,1778049227000,-209.86289845,0.000189,2]
[421705054,1778049227000,-500.0,0.00019178,2]
[421705013,1778049227000,-162.55277151,0.0001853,2]
[421705014,1778049227000,-160.0,0.0001853,2]
[421705015,1778049227000,-2500.0,0.0001863,2]
[421705016,1778049227000,-1369.28734531,0.0001863,2]
[421705017,1778049227000,-1508.23716968,0.0001863,2]
[421705020,1778049227000,-209.86289845,0.000187,2]
[421705019,1778049227000,-2500.0,0.0001863,2]
[421705018,1778049227000,-1634.77125774,0.0001863,2]
[421705033,1778049227000,-263.0,0.0001884,2]
[421705022,1778049227000,-300.0,0.00018799,2]
[421705025,1778049227000,-300.0,0.00018799,2]
[421705024,1778049227000,-300.0,0.00018799,2]
[421705030,1778049227000,-150.0,0.0001884,2]
[421705028,1778049227000,-150.0,0.0001884,2]
[421705027,1778049227000,-137151.08452491,0.000188,2]
[421705026,1778049227000,-666.0,0.00018799,2]
[421705029,1778049227000,-150.0,0.0001884,2]
[421705032,1778049227000,-150.0,0.0001884,2]
[421705031,1778049227000,-150.0,0.0001884,2]
[421705023,1778049227000,-300.0,0.00018799,2]
[421705058,1778049227000,-209.86289845,0.000193,2]
[421705060,1778049227000,-500.0,0.00019325,2]
[421705059,1778049227000,-500.0,0.00019325,2]
[421705080,1778049227000,-300.0,0.00019949,2]
[421705085,1778049227000,-829.0,0.0002,2]
[421705088,1778049227000,-8829.0,0.0002,2]
[421705098,1778049227000,-609.0,0.0002,2]
[421705087,1778049227000,-199.06317263,0.0002,2]
[421705089,1778049227000,-158.0,0.0002,9]
[421705095,1778049227000,-441.0,0.0002,2]
[421705091,1778049227000,-152.0,0.0002,2]
[421705093,1778049227000,-342.0,0.0002,2]
[421705090,1778049227000,-447.0,0.0002,2]
[421705097,1778049227000,-400.0,0.0002,2]
[421705094,1778049227000,-1100.0,0.0002,2]
[421705096,1778049227000,-7067.96587589,0.0002,2]
[421705100,1778049227000,-9419.0,0.0002,2]
[421705103,1778049227000,-4804.0,0.0002,2]
[421705101,1778049227000,-1000.0,0.0002,7]
[421705099,1778049227000,-25877.32509415,0.0002,2]
[421705102,1778049227000,-26729.49640884,0.0002,2]
[421705057,1778049227000,-3000.0,0.00019178,2]
[421705086,1778049227000,-199.06317263,0.0002,2]
[421705084,1778049227000,-286741.23074955,0.0001995,15]
[421705092,1778049227000,-263.0,0.0002,2]
[421705078,1778049227000,-4986.65705926,0.000199,3]
[421705064,1778049227000,-258.07795954,0.00019682,2]
[421705083,1778049227000,-675.23604974,0.00019949,2]
[421705061,1778049227000,-500.0,0.00019325,2]
[421705063,1778049227000,-163.16558903,0.00019325,2]
[421705065,1778049227000,-162.59148893,0.00019682,2]
[421705062,1778049227000,-500.0,0.00019325,2]
[421705066,1778049227000,-500.0,0.00019682,2]
[421705069,1778049227000,-1065.54992568,0.00019726,2]
[421705068,1778049227000,-500.0,0.00019682,2]
[421705070,1778049227000,-3385.17092439,0.00019726,2]
[421705067,1778049227000,-500.0,0.00019682,2]
[421705073,1778049227000,-500.0,0.00019872,2]
[421705075,1778049227000,-671.63544967,0.00019873,2]
[421705074,1778049227000,-1000.0,0.00019873,2]
[421705071,1778049227000,-544.06732421,0.00019872,2]
[421705072,1778049227000,-500.0,0.00019872,2]
[421705077,1778049227000,-1000.0,0.00019873,2]
[421705076,1778049227000,-1000.0,0.00019873,2]
[421705079,1778049227000,-300.0,0.00019949,2]
[421705081,1778049227000,-300.0,0.00019949,2]
[421705082,1778049227000,-300.0,0.00019949,2]
[421705139,1778049228000,-609.0,0.00021,2]
[421705138,1778049228000,-441.0,0.00021,2]
[421705137,1778049228000,-1100.0,0.00021,2]
[421705136,1778049228000,-342.0,0.00021,2]
[421705135,1778049228000,-263.0,0.00021,2]
[421705134,1778049228000,-152.0,0.00021,2]
[421705133,1778049228000,-447.0,0.00021,2]
[421705132,1778049228000,-829.0,0.00021,2]
[421705143,1778049228000,-475.44,0.00021393,2]
[421705131,1778049228000,-1000.0,0.00020984,2]
[421705141,1778049228000,-3956.45,0.00021273,2]
[421705152,1778049228000,-5000.0,0.00021918,2]
[421705142,1778049228000,-492.11,0.00021273,2]
[421705145,1778049228000,-473.75913536,0.00021517,2]
[421705155,1778049228000,-475.47,0.00021941,2]
[421705148,1778049228000,-1500.0,0.00021532,2]
[421705147,1778049228000,-1500.0,0.00021532,2]
[421705144,1778049228000,-58241.82039864,0.000215,2]
[421705146,1778049228000,-431.73147682,0.00021532,2]
[421705151,1778049228000,-475.44,0.00021667,2]
[421705149,1778049228000,-1500.0,0.00021532,2]
[421705154,1778049228000,-1000.0,0.00021918,5]
[421705130,1778049228000,-1000.0,0.00020984,2]
[421705140,1778049228000,-475.44,0.00021119,2]
[421705129,1778049228000,-1000.0,0.00020984,2]
[421705110,1778049228000,-1500.0,0.00020421,2]
[421705126,1778049228000,-2000.0,0.00020969,2]
[421705105,1778049228000,-1000.0,0.0002023,2]
[421705104,1778049228000,-6453.0,0.0002013,2]
[421705106,1778049228000,-1000.0,0.0002023,2]
[421705108,1778049228000,-22643.39657233,0.00020288,2]
[421705109,1778049228000,-2502.4,0.00020381,2]
[421705111,1778049228000,-1500.0,0.00020421,2]
[421705112,1778049228000,-1500.0,0.00020421,2]
[421705107,1778049228000,-1000.0,0.0002023,2]
[421705115,1778049228000,-500.0,0.00020436,2]
[421705114,1778049228000,-500.0,0.00020436,2]
[421705113,1778049228000,-500.0,0.00020436,2]
[421705116,1778049228000,-500.0,0.00020436,2]
[421705117,1778049228000,-500.0,0.00020436,2]
[421705122,1778049228000,-1500.0,0.00020778,2]
[421705153,1778049228000,-1000.0,0.00021918,5]
[421705124,1778049228000,-2000.0,0.00020969,2]
[421705119,1778049228000,-22926.97907708,0.000207,2]
[421705123,1778049228000,-475.44,0.00020845,2]
[421705118,1778049228000,-501.05799506,0.00020436,2]
[421705120,1778049228000,-1096.48180787,0.00020778,2]
[421705121,1778049228000,-1536.25927147,0.00020778,2]
[421705125,1778049228000,-1994.5307258,0.00020969,2]
[421705128,1778049228000,-1000.0,0.00020984,2]
[421705127,1778049228000,-1000.0,0.00020984,2]
[421705150,1778049228000,-1500.0,0.00021532,2]
[421705194,1778049228000,-2000.0,0.00022153,2]
[421705157,1778049228000,-447.0,0.00022,2]
[421705182,1778049228000,-2000.0,0.00022112,2]
[421705181,1778049228000,-2000.0,0.00022112,2]
[421705184,1778049228000,-300.0,0.00022152,2]
[421705188,1778049228000,-2000.0,0.00022153,2]
[421705186,1778049228000,-300.0,0.00022152,2]
[421705189,1778049228000,-2000.0,0.00022153,2]
[421705192,1778049228000,-2000.0,0.00022153,2]
[421705191,1778049228000,-2000.0,0.00022153,2]
[421705201,1778049228000,-2000.0,0.00022153,2]
[421705196,1778049228000,-2000.0,0.00022153,2]
[421705195,1778049228000,-2000.0,0.00022153,2]
[421705198,1778049228000,-2000.0,0.00022153,2]
[421705197,1778049228000,-2000.0,0.00022153,2]
[421705200,1778049228000,-2000.0,0.00022153,2]
[421705199,1778049228000,-2000.0,0.00022153,2]
[421705202,1778049228000,-2000.0,0.00022153,2]
[421705207,1778049228000,-1650.0,0.00022171,2]
[421705205,1778049228000,-2000.0,0.00022153,2]
[421705206,1778049228000,-2000.0,0.00022153,2]
[421705204,1778049228000,-2000.0,0.00022153,2]
[421705208,1778049228000,-600.0,0.00022171,7]
[421705203,1778049228000,-2000.0,0.00022153,2]
[421705156,1778049228000,-829.0,0.00022,2]
[421705187,1778049228000,-2000.0,0.00022153,2]
[421705185,1778049228000,-300.0,0.00022152,2]
[421705193,1778049228000,-2000.0,0.00022153,2]
[421705190,1778049228000,-2000.0,0.00022153,2]
[421705183,1778049228000,-9035.0,0.00022143,2]
[421705161,1778049228000,-342.0,0.00022,2]
[421705158,1778049228000,-156.28566167,0.00022,2]
[421705159,1778049228000,-1177.93,0.00022,2]
[421705166,1778049228000,-2000.0,0.0002208,2]
[421705167,1778049228000,-1461.74205325,0.0002208,2]
[421705164,1778049228000,-450.0,0.00022,2]
[421705165,1778049228000,-609.0,0.00022,2]
[421705162,1778049228000,-1100.0,0.00022,2]
[421705163,1778049228000,-441.0,0.00022,2]
[421705169,1778049228000,-2000.0,0.0002208,2]
[421705168,1778049228000,-2017.16375829,0.0002208,2]
[421705160,1778049228000,-263.0,0.00022,2]
[421705170,1778049228000,-300.0,0.00022094,2]
[421705171,1778049228000,-300.0,0.00022094,2]
[421705172,1778049228000,-300.0,0.00022094,2]
[421705173,1778049228000,-340.44656242,0.00022094,2]
[421705178,1778049228000,-2000.0,0.00022112,2]
[421705175,1778049228000,-2000.0,0.00022112,2]
[421705174,1778049228000,-2000.0,0.00022112,2]
[421705176,1778049228000,-2000.0,0.00022112,2]
[421705177,1778049228000,-2000.0,0.00022112,2]
[421705179,1778049228000,-2000.0,0.00022112,2]
[421705180,1778049228000,-2000.0,0.00022112,2]
[421705250,1778049229000,-401.18521548,0.000235,2]
[421705249,1778049229000,-1000.0,0.00023288,15]
[421705258,1778049229000,-1035.52786894,0.00024,2]
[421705248,1778049229000,-500.0,0.00023191,2]
[421705247,1778049229000,-2856.57211453,0.00023175,2]
[421705239,1778049229000,-829.0,0.00023,2]
[421705246,1778049229000,-3000.0,0.00023175,2]
[421705244,1778049229000,-441.0,0.00023,2]
[421705243,1778049229000,-1100.0,0.00023,2]
[421705240,1778049229000,-447.0,0.00023,2]
[421705256,1778049229000,-342.0,0.00024,2]
[421705245,1778049229000,-609.0,0.00023,2]
[421705251,1778049229000,-150.0,0.000236,14]
[421705264,1778049229000,-342.19,0.0002411,2]
[421705253,1778049229000,-829.0,0.00024,2]
[421705252,1778049229000,-2680.45515395,0.00023723,2]
[421705257,1778049229000,-1100.0,0.00024,2]
[421705255,1778049229000,-263.0,0.00024,2]
[421705259,1778049229000,-441.0,0.00024,2]
[421705270,1778049229000,-2640.26,0.00024174,2]
[421705262,1778049229000,-3600.0,0.00024,2]
[421705261,1778049229000,-609.0,0.00024,2]
[421705260,1778049229000,-500.0,0.00024,2]
[421705263,1778049229000,-1252.07895434,0.00024,2]
[421705268,1778049229000,-300.0,0.00024173,2]
[421705241,1778049229000,-263.0,0.00023,2]
[421705254,1778049229000,-447.0,0.00024,2]
[421705242,1778049229000,-342.0,0.00023,2]
[421705214,1778049229000,-35948.84403507,0.000225,2]
[421705236,1778049229000,-2000.0,0.00022901,2]
[421705209,1778049229000,-22643.39657233,0.00022211,2]
[421705211,1778049229000,-1412.32,0.00022466,2]
[421705212,1778049229000,-1042.48,0.00022466,2]
[421705269,1778049229000,-452.87,0.00024174,2]
[421705213,1778049229000,-2900.0,0.000225,15]
[421705215,1778049229000,-300.0,0.00022583,2]
[421705216,1778049229000,-300.0,0.00022583,2]
[421705224,1778049229000,-2000.0,0.00022901,2]
[421705217,1778049229000,-300.0,0.00022583,2]
[421705219,1778049229000,-2500.0,0.00022627,2]
[421705223,1778049229000,-2000.0,0.00022901,2]
[421705218,1778049229000,-2500.0,0.00022627,2]
[421705222,1778049229000,-2000.0,0.00022901,2]
[421705220,1778049229000,-1482.73098485,0.00022834,2]
[421705221,1778049229000,-2000.0,0.00022901,2]
[421705227,1778049229000,-2000.0,0.00022901,2]
[421705225,1778049229000,-2000.0,0.00022901,2]
[421705228,1778049229000,-2000.0,0.00022901,2]
[421705226,1778049229000,-2000.0,0.00022901,2]
[421705229,1778049229000,-2000.0,0.00022901,2]
[421705235,1778049229000,-2000.0,0.00022901,2]
[421705231,1778049229000,-2000.0,0.00022901,2]
[421705234,1778049229000,-2000.0,0.00022901,2]
[421705232,1778049229000,-2000.0,0.00022901,2]
[421705233,1778049229000,-2000.0,0.00022901,2]
[421705230,1778049229000,-2000.0,0.00022901,2]
[421705237,1778049229000,-2000.0,0.00022901,2]
[421705238,1778049229000,-2000.0,0.00022901,2]
[421705267,1778049229000,-300.0,0.00024173,2]
[421705210,1778049229000,-2502.4,0.00022353,2]
[421705266,1778049229000,-300.0,0.00024173,2]
[421705301,1778049229000,-248.27,0.00024946,7]
[421705303,1778049229000,-834.58030331,0.00025,2]
[421705308,1778049229000,-446.81483075,0.00025,2]
[421705302,1778049229000,-253.81,0.00024946,7]
[421705304,1778049229000,-458.43715,0.00025,2]
[421705305,1778049229000,-277.46179971,0.00025,2]
[421705306,1778049229000,-359.25442395,0.00025,2]
[421705310,1778049229000,-209.86649147,0.00025,2]
[421705309,1778049229000,-1126.5992081,0.00025,2]
[421705311,1778049229000,-580.17466559,0.00025,60]
[421705320,1778049229000,-253.81,0.00025234,30]
[421705315,1778049229000,-540.0,0.00025,2]
[421705314,1778049229000,-2000.0,0.00025,2]
[421705312,1778049229000,-1805.18416492,0.00025,2]
[421705319,1778049229000,-248.27,0.00025234,30]
[421705321,1778049229000,-350.0,0.00025319,2]
[421705313,1778049229000,-617.88288883,0.00025,2]
[421705317,1778049229000,-3078.04110754,0.00025,2]
[421705318,1778049229000,-250.0,0.00025205,2]
[421705316,1778049229000,-617.75203949,0.00025,2]
[421705322,1778049229000,-248.27,0.00025523,2]
[421705324,1778049229000,-150.0,0.00025753,2]
[421705323,1778049229000,-253.81,0.00025523,2]
[421705326,1778049229000,-3956.45,0.00025786,2]
[421705325,1778049229000,-350.0,0.00025753,2]
[421705265,1778049229000,-22643.39657233,0.00024133,2]
[421705328,1778049229000,-2640.26,0.00025786,2]
[421705299,1778049229000,-253.81,0.00024658,2]
[421705297,1778049229000,-150.0,0.00024658,2]
[421705327,1778049229000,-452.87,0.00025786,2]
[421705298,1778049229000,-248.27,0.00024658,2]
[421705307,1778049229000,-1115.61790507,0.00025,2]
[421705272,1778049229000,-150.0,0.00024223,2]
[421705282,1778049229000,-500.0,0.00024657,2]
[421705283,1778049229000,-500.0,0.00024657,2]
[421705273,1778049229000,-2502.4,0.00024324,2]
[421705281,1778049229000,-500.0,0.00024657,2]
[421705278,1778049229000,-500.0,0.00024657,2]
[421705275,1778049229000,-450.0,0.00024475,2]
[421705274,1778049229000,-9900.0,0.00024357,2]
[421705276,1778049229000,-500.0,0.00024657,2]
[421705277,1778049229000,-500.0,0.00024657,2]
[421705280,1778049229000,-500.0,0.00024657,2]
[421705279,1778049229000,-500.0,0.00024657,2]
[421705271,1778049229000,-27417.04,0.00024174,2]
[421705294,1778049229000,-150.0,0.00024658,2]
[421705300,1778049229000,-250.0,0.00024771,2]
[421705296,1778049229000,-1000.0,0.00024658,2]
[421705293,1778049229000,-1000.0,0.00024658,25]
[421705292,1778049229000,-500.0,0.00024657,2]
[421705285,1778049229000,-500.0,0.00024657,2]
[421705286,1778049229000,-500.0,0.00024657,2]
[421705291,1778049229000,-500.0,0.00024657,2]
[421705289,1778049229000,-500.0,0.00024657,2]
[421705288,1778049229000,-500.0,0.00024657,2]
[421705284,1778049229000,-500.0,0.00024657,2]
[421705287,1778049229000,-500.0,0.00024657,2]
[421705295,1778049229000,-399.67,0.00024658,2]
[421705290,1778049229000,-500.0,0.00024657,2]
[421705371,1778049230000,-1419.836767,0.00027397,2]
[421705369,1778049230000,-328.357965,0.00027397,2]
[421705367,1778049230000,-328.357965,0.00027397,2]
[421705364,1778049230000,-1000.0,0.00027397,20]
[421705361,1778049230000,-1500.0,0.00027397,2]
[421705365,1778049230000,-399.67,0.00027397,2]
[421705366,1778049230000,-300.0,0.00027397,2]
[421705362,1778049230000,-650.0,0.00027397,5]
[421705357,1778049230000,-200.92336054,0.0002736,2]
[421705360,1778049230000,-230.88441929,0.00027397,2]
[421705363,1778049230000,-1015.9,0.00027397,2]
[421705370,1778049230000,-328.357965,0.00027397,2]
[421705376,1778049230000,-151.0,0.00027397,2]
[421705368,1778049230000,-328.357965,0.00027397,2]
[421705373,1778049230000,-1419.836767,0.00027397,2]
[421705375,1778049230000,-19684.17,0.00027397,10]
[421705374,1778049230000,-1419.836767,0.00027397,2]
[421705378,1778049230000,-415.77,0.000274,7]
[421705377,1778049230000,-16403.48,0.00027397,10]
[421705380,1778049230000,-73732.17,0.000274,7]
[421705379,1778049230000,-500.0,0.000274,7]
[421705381,1778049230000,-3344.71432068,0.00027519,2]
[421705383,1778049230000,-500.0,0.00027591,2]
[421705382,1778049230000,-380.01609046,0.00027519,2]
[421705359,1778049230000,-150.0,0.00027397,2]
[421705372,1778049230000,-1419.836767,0.00027397,2]
[421705358,1778049230000,-500.0,0.00027396,2]
[421705336,1778049230000,-550.0,0.00026,2]
[421705353,1778049230000,-1141.46973421,0.00027039,5]
[421705333,1778049230000,-450.0,0.00025867,2]
[421705330,1778049230000,-492.11,0.00025786,2]
[421705331,1778049230000,-248.27,0.00025811,7]
[421705332,1778049230000,-253.81,0.00025811,7]
[421705329,1778049230000,-27417.04,0.00025786,2]
[421705335,1778049230000,-4573.71407849,0.00026,2]
[421705345,1778049230000,-248.27,0.00026388,2]
[421705339,1778049230000,-22643.39657233,0.00026055,2]
[421705343,1778049230000,-450.0,0.00026301,2]
[421705338,1778049230000,-1000.0,0.00026027,35]
[421705344,1778049230000,-246.59,0.00026388,2]
[421705334,1778049230000,-31157.8661112,0.0002589,5]
[421705337,1778049230000,-244.42,0.00026027,7]
[421705342,1778049230000,-2502.4,0.00026296,2]
[421705340,1778049230000,-248.27,0.00026099,30]
[421705341,1778049230000,-253.81,0.00026099,30]
[421705346,1778049230000,-253.81,0.00026388,2]
[421705348,1778049230000,-159.64,0.00026849,2]
[421705350,1778049230000,-401.94273924,0.00026963,2]
[421705351,1778049230000,-1032.42989204,0.00027039,5]
[421705349,1778049230000,-550.0,0.00026849,2]
[421705347,1778049230000,-550.0,0.00026415,2]
[421705352,1778049230000,-1027.31190061,0.00027039,5]
[421705356,1778049230000,-154.99317027,0.00027324,2]
[421705355,1778049230000,-254.44,0.000273,14]
[421705354,1778049230000,-892.93436753,0.00027039,5]
[421705384,1778049230000,-507.14,0.00027591,7]
[421705387,1778049230000,-500.0,0.00027914,15]
[421705386,1778049230000,-1482.73098485,0.00027767,2]
[421705417,1778049230000,-278.48938,0.000285,7]
[421705421,1778049230000,-165.51,0.0002863,2]
[421705424,1778049230000,-169.21,0.00028661,7]
[421705425,1778049230000,-165.51,0.00028693,30]
[421705420,1778049230000,-278.48938,0.000285,7]
[421705419,1778049230000,-151.0,0.000285,7]
[421705418,1778049230000,-278.48938,0.000285,7]
[421705416,1778049230000,-278.48938,0.000285,7]
[421705423,1778049230000,-165.51,0.00028661,7]
[421705427,1778049230000,-165.51,0.00028725,2]
[421705426,1778049230000,-169.21,0.00028693,30]
[421705432,1778049230000,-169.21,0.00028756,7]
[421705428,1778049230000,-169.21,0.00028725,2]
[421705433,1778049230000,-1000.0,0.00028767,55]
[421705431,1778049230000,-165.51,0.00028756,7]
[421705429,1778049230000,-152.0,0.00028733,3]
[421705436,1778049230000,-162.55277151,0.000288,7]
[421705434,1778049230000,-165.51,0.00028788,30]
[421705435,1778049230000,-169.21,0.00028788,30]
[421705437,1778049230000,-165.51,0.0002882,2]
[421705439,1778049230000,-165.51,0.00028852,7]
[421705438,1778049230000,-169.21,0.0002882,2]
[421705440,1778049230000,-169.21,0.00028852,7]
[421705441,1778049230000,-165.51,0.00028883,30]
[421705385,1778049230000,-551.68,0.00027591,30]
[421705422,1778049230000,-169.21,0.0002863,2]
[421705415,1778049230000,-73732.17,0.000285,7]
[421705430,1778049230000,-500.0,0.00028752,17]
[421705410,1778049230000,-500.0,0.00028499,2]
[421705388,1778049230000,-661.22043059,0.00027945,5]
[421705412,1778049230000,-500.0,0.00028499,2]
[421705389,1778049230000,-22643.39657233,0.00027977,2]
[421705390,1778049230000,-162.55277151,0.00028,7]
[421705392,1778049230000,-45918.75160327,0.00028,2]
[421705395,1778049230000,-500.0,0.00028499,2]
[421705396,1778049230000,-500.0,0.00028499,2]
[421705393,1778049230000,-2502.4,0.00028267,2]
[421705394,1778049230000,-199.36,0.00028493,2]
[421705399,1778049230000,-500.0,0.00028499,2]
[421705397,1778049230000,-500.0,0.00028499,2]
[421705401,1778049230000,-500.0,0.00028499,2]
[421705400,1778049230000,-500.0,0.00028499,2]
[421705391,1778049230000,-600.0,0.00028,2]
[421705409,1778049230000,-500.0,0.00028499,2]
[421705411,1778049230000,-500.0,0.00028499,2]
[421705398,1778049230000,-500.0,0.00028499,2]
[421705403,1778049230000,-500.0,0.00028499,2]
[421705414,1778049230000,-380.41984111,0.00028499,2]
[421705407,1778049230000,-500.0,0.00028499,2]
[421705404,1778049230000,-500.0,0.00028499,2]
[421705413,1778049230000,-500.0,0.00028499,2]
[421705406,1778049230000,-500.0,0.00028499,2]
[421705405,1778049230000,-500.0,0.00028499,2]
[421705402,1778049230000,-500.0,0.00028499,2]
[421705408,1778049230000,-500.0,0.00028499,2]
[421705474,1778049231000,-150.0,0.00029534,2]
[421705482,1778049231000,-1101.80835881,0.00029534,5]
[421705481,1778049231000,-1002.36784796,0.00029534,5]
[421705479,1778049231000,-1077.99429804,0.00029534,5]
[421705478,1778049231000,-1134.09488218,0.00029534,5]
[421705472,1778049231000,-1664.97863847,0.00029452,30]
[421705476,1778049231000,-1078.05897684,0.00029534,5]
[421705475,1778049231000,-1128.52784158,0.00029534,5]
[421705473,1778049231000,-415.77,0.000295,7]
[421705480,1778049231000,-1082.50209253,0.00029534,5]
[421705477,1778049231000,-1139.3341357,0.00029534,5]
[421705484,1778049231000,-500.0,0.00029614,18]
[421705494,1778049231000,-315.0,0.00029644,30]
[421705485,1778049231000,-315.0,0.00029644,30]
[421705486,1778049231000,-315.0,0.00029644,30]
[421705488,1778049231000,-315.0,0.00029644,30]
[421705489,1778049231000,-315.0,0.00029644,30]
[421705487,1778049231000,-315.0,0.00029644,30]
[421705490,1778049231000,-315.0,0.00029644,30]
[421705492,1778049231000,-315.0,0.00029644,30]
[421705491,1778049231000,-315.0,0.00029644,30]
[421705493,1778049231000,-315.0,0.00029644,30]
[421705495,1778049231000,-315.0,0.00029644,30]
[421705505,1778049231000,-315.0,0.00029644,30]
[421705469,1778049231000,-165.6,0.00029232,7]
[421705483,1778049231000,-152.0,0.00029599,4]
[421705468,1778049231000,-169.21,0.00029201,2]
[421705496,1778049231000,-315.0,0.00029644,30]
[421705470,1778049231000,-169.24,0.00029232,7]
[421705442,1778049231000,-169.21,0.00028883,30]
[421705444,1778049231000,-169.21,0.00028915,2]
[421705443,1778049231000,-165.51,0.00028915,2]
[421705448,1778049231000,-169.21,0.00028979,30]
[421705445,1778049231000,-165.51,0.00028947,7]
[421705446,1778049231000,-169.21,0.00028947,7]
[421705447,1778049231000,-165.51,0.00028979,30]
[421705450,1778049231000,-2103.10961501,0.00029,2]
[421705449,1778049231000,-162.55277151,0.00029,7]
[421705455,1778049231000,-165.51,0.00029074,30]
[421705456,1778049231000,-169.21,0.00029074,30]
[421705451,1778049231000,-165.51,0.0002901,2]
[421705466,1778049231000,-457.26723297,0.00029199,10]
[421705454,1778049231000,-169.21,0.00029042,7]
[421705453,1778049231000,-165.51,0.00029042,7]
[421705457,1778049231000,-165.51,0.00029105,2]
[421705459,1778049231000,-165.51,0.00029137,7]
[421705458,1778049231000,-169.21,0.00029105,2]
[421705460,1778049231000,-169.21,0.00029137,7]
[421705461,1778049231000,-165.51,0.00029169,30]
[421705462,1778049231000,-169.21,0.00029169,30]
[421705465,1778049231000,-500.0,0.00029199,10]
[421705471,1778049231000,-73732.17,0.000294,7]
[421705463,1778049231000,-500.0,0.00029199,10]
[421705464,1778049231000,-500.0,0.00029199,10]
[421705467,1778049231000,-165.51,0.00029201,2]
[421705452,1778049231000,-169.21,0.0002901,2]
[421705504,1778049231000,-315.0,0.00029644,30]
[421705553,1778049231000,-200.0,0.00030137,2]
[421705500,1778049231000,-315.0,0.00029644,30]
[421705530,1778049231000,-300.0,0.00029644,30]